[Event "Titled Tuesday Blitz December 14 2021"]
[White "Panesar Vedant"]
[Black "Yang, Kevin"]
[WhiteFideId "35033018"]
[BlackFideId "30908485"]
[WhiteElo "1971"]
[BlackElo "2055"]
[Result "1/2-1/2"]
[Round "07"]
[TimeControl "180+1"]
[Date "2021.12.15"]
[WhiteClock "0:00:10"]
[BlackClock "0:00:04"]

1. e4 {[%clk 0:03:00]}  g6 {[%clk 0:02:56]} 2. d4 {[%clk 0:03:01]}  Bg7 {[%clk 0:02:50]} 3. Nc3 {[%clk 0:03:02]}  d6 {[%clk 0:02:50]} 4. Be3 {[%clk 0:03:02]}  a6 {[%clk 0:02:49]} 5. Nf3 {[%clk 0:03:03]}  Nd7 {[%clk 0:02:48]} 6. Qd2 {[%clk 0:03:03]}  b5 {[%clk 0:02:45]} 7. Bd3 {[%clk 0:03:03]}  Bb7 {[%clk 0:02:44]} 8. O-O {[%clk 0:03:03]}  Ngf6 {[%clk 0:02:37]} 9. e5 {[%clk 0:02:39]}  Ng4 {[%clk 0:02:18]} 10. e6 {[%clk 0:02:35]}  fxe6 {[%clk 0:02:13]} 11. Ng5 {[%clk 0:02:35]}  Nf8 {[%clk 0:02:06]} 12. Qe2 {[%clk 0:02:35]}  Nf6 {[%clk 0:02:00]} 13. Bxb5+ {[%clk 0:02:29]}  axb5 {[%clk 0:01:50]} 14. Qxb5+ {[%clk 0:02:30]}  Qd7 {[%clk 0:01:40]} 15. Qxb7 {[%clk 0:02:25]}  Rc8 {[%clk 0:01:40]} 16. a4 {[%clk 0:02:16]}  h6 {[%clk 0:01:38]} 17. Nf3 {[%clk 0:02:16]}  c5 {[%clk 0:01:38]} 18. Qxd7+ {[%clk 0:02:11]}  N8xd7 {[%clk 0:01:33]} 19. a5 {[%clk 0:02:12]}  Nd5 {[%clk 0:01:24]} 20. Nxd5 {[%clk 0:02:11]}  exd5 {[%clk 0:01:25]} 21. a6 {[%clk 0:02:12]}  Kf7 {[%clk 0:01:24]} 22. a7 {[%clk 0:02:10]}  Ra8 {[%clk 0:01:23]} 23. Ra6 {[%clk 0:02:07]}  Rhc8 {[%clk 0:01:20]} 24. c3 {[%clk 0:02:07]}  Rc7 {[%clk 0:01:15]} 25. Rfa1 {[%clk 0:02:07]}  Rb7 {[%clk 0:01:13]} 26. R1a2 {[%clk 0:02:04]}  e5 {[%clk 0:01:00]} 27. h3 {[%clk 0:01:45]}  e4 {[%clk 0:00:52]} 28. Nd2 {[%clk 0:01:44]}  cxd4 {[%clk 0:00:46]} 29. cxd4 {[%clk 0:01:43]}  Nb6 {[%clk 0:00:41]} 30. b3 {[%clk 0:01:33]}  Nc8 {[%clk 0:00:38]} 31. Rc2 {[%clk 0:01:20]}  Rbxa7 {[%clk 0:00:22]} 32. Rxa7+ {[%clk 0:01:18]}  Nxa7 {[%clk 0:00:23]} 33. Ra2 {[%clk 0:01:19]}  Ke6 {[%clk 0:00:21]} 34. b4 {[%clk 0:01:17]}  Kd7 {[%clk 0:00:17]} 35. Nb1 {[%clk 0:01:15]}  Kc6 {[%clk 0:00:16]} 36. Nc3 {[%clk 0:01:15]}  Kb7 {[%clk 0:00:10]} 37. Nxd5 {[%clk 0:01:14]}  Nc6 {[%clk 0:00:10]} 38. Rxa8 {[%clk 0:01:11]}  Kxa8 {[%clk 0:00:11]} 39. b5 {[%clk 0:01:02]}  Nxd4 {[%clk 0:00:09]} 40. Bxd4 {[%clk 0:01:02]}  Bxd4 {[%clk 0:00:09]} 41. Ne7 {[%clk 0:01:03]}  Kb7 {[%clk 0:00:06]} 42. Nxg6 {[%clk 0:01:02]}  Kb6 {[%clk 0:00:06]} 43. Ne7 {[%clk 0:00:57]}  Be5 {[%clk 0:00:04]} 44. Nf5 {[%clk 0:00:55]}  h5 {[%clk 0:00:04]} 45. h4 {[%clk 0:00:55]}  Kxb5 {[%clk 0:00:04]} 46. Kf1 {[%clk 0:00:52]}  Kc6 {[%clk 0:00:04]} 47. Ke2 {[%clk 0:00:52]}  Kd7 {[%clk 0:00:04]} 48. Ne3 {[%clk 0:00:48]}  Ke6 {[%clk 0:00:03]} 49. Nc2 {[%clk 0:00:44]}  d5 {[%clk 0:00:03]} 50. Ke3 {[%clk 0:00:45]}  Bf6 {[%clk 0:00:03]} 51. g3 {[%clk 0:00:45]}  Kf5 {[%clk 0:00:02]} 52. f3 {[%clk 0:00:42]}  exf3 {[%clk 0:00:02]} 53. Kxf3 {[%clk 0:00:43]}  d4 {[%clk 0:00:03]} 54. Ne1 {[%clk 0:00:43]}  Be5 {[%clk 0:00:02]} 55. Nd3 {[%clk 0:00:44]}  Bd6 {[%clk 0:00:02]} 56. Nf2 {[%clk 0:00:43]}  Be7 {[%clk 0:00:02]} 57. Ne4 {[%clk 0:00:42]}  Ba3 {[%clk 0:00:03]} 58. Nf2 {[%clk 0:00:42]}  Be7 {[%clk 0:00:03]} 59. Nd3 {[%clk 0:00:41]}  Bf8 {[%clk 0:00:03]} 60. Nf4 {[%clk 0:00:41]}  Bh6 {[%clk 0:00:03]} 61. Nxh5 {[%clk 0:00:40]}  d3 {[%clk 0:00:03]} 62. g4+ {[%clk 0:00:37]}  Kg6 {[%clk 0:00:04]} 63. Ng3 {[%clk 0:00:36]}  Bf8 {[%clk 0:00:03]} 64. Ke3 {[%clk 0:00:34]}  Bd6 {[%clk 0:00:03]} 65. Ne4 {[%clk 0:00:32]}  Be7 {[%clk 0:00:03]} 66. g5 {[%clk 0:00:32]}  Kh5 {[%clk 0:00:03]} 67. Kxd3 {[%clk 0:00:16]}  Kxh4 {[%clk 0:00:03]} 68. g6 {[%clk 0:00:17]}  Bf8 {[%clk 0:00:04]} 69. Nf6 {[%clk 0:00:09]}  Kg5 {[%clk 0:00:03]} 70. Nh7+ {[%clk 0:00:10]}  Kxg6 {[%clk 0:00:04]} 1/2-1/2


[Site "https://www.chess.com"]

[Event "Titled Tuesday Blitz December 14 2021"]
[White "Petrovskyi, Vadym"]
[Black "Holt, Conrad"]
[WhiteFideId "14165210"]
[BlackFideId "2034387"]
[WhiteElo "2377"]
[BlackElo "2586"]
[Result "0-1"]
[Round "07"]
[TimeControl "180+1"]
[Date "2021.12.14"]
[WhiteClock "0:00:10"]
[BlackClock "0:00:06"]

1. e4 {[%clk 0:03:00]}  e6 {[%clk 0:02:59]} 2. d4 {[%clk 0:03:01]}  d5 {[%clk 0:03:00]} 3. Nc3 {[%clk 0:03:01]}  Nf6 {[%clk 0:03:00]} 4. e5 {[%clk 0:03:01]}  Nfd7 {[%clk 0:03:01]} 5. f4 {[%clk 0:03:02]}  c5 {[%clk 0:03:01]} 6. Nf3 {[%clk 0:03:03]}  Nc6 {[%clk 0:03:02]} 7. Be3 {[%clk 0:03:03]}  cxd4 {[%clk 0:03:02]} 8. Nxd4 {[%clk 0:03:03]}  Bc5 {[%clk 0:03:03]} 9. Qd2 {[%clk 0:03:03]}  O-O {[%clk 0:03:04]} 10. Be2 {[%clk 0:03:02]}  a6 {[%clk 0:03:01]} 11. O-O {[%clk 0:03:02]}  Qc7 {[%clk 0:03:01]} 12. Rae1 {[%clk 0:03:00]}  Na5 {[%clk 0:02:50]} 13. a3 {[%clk 0:02:43]}  Be7 {[%clk 0:02:40]} 14. Nf5 {[%clk 0:02:02]}  Bc5 {[%clk 0:02:28]} 15. Bxc5 {[%clk 0:01:59]}  Qxc5+ {[%clk 0:02:25]} 16. Nd4 {[%clk 0:01:59]}  Nc6 {[%clk 0:02:11]} 17. Rd1 {[%clk 0:01:58]}  b5 {[%clk 0:02:08]} 18. Kh1 {[%clk 0:01:45]}  Nxd4 {[%clk 0:01:58]} 19. Qxd4 {[%clk 0:01:46]}  Qxd4 {[%clk 0:01:54]} 20. Rxd4 {[%clk 0:01:47]}  Rb8 {[%clk 0:01:39]} 21. Rfd1 {[%clk 0:01:36]}  Rb6 {[%clk 0:01:27]} 22. Bf3 {[%clk 0:01:21]}  Rc6 {[%clk 0:01:17]} 23. f5 {[%clk 0:01:06]}  Nxe5 {[%clk 0:01:16]} 24. fxe6 {[%clk 0:01:05]}  fxe6 {[%clk 0:00:58]} 25. Nxd5 {[%clk 0:01:05]}  Rxc2 {[%clk 0:00:50]} 26. Ne7+ {[%clk 0:01:03]}  Kf7 {[%clk 0:00:50]} 27. Nxc8 {[%clk 0:00:58]}  Rfxc8 {[%clk 0:00:45]} 28. Bb7 {[%clk 0:00:53]}  R8c4 {[%clk 0:00:44]} 29. h3 {[%clk 0:00:34]}  Rxd4 {[%clk 0:00:41]} 30. Rxd4 {[%clk 0:00:35]}  Rxb2 {[%clk 0:00:40]} 31. Bxa6 {[%clk 0:00:35]}  Ke7 {[%clk 0:00:33]} 32. Bc8 {[%clk 0:00:23]}  Nc4 {[%clk 0:00:26]} 33. Rd7+ {[%clk 0:00:19]}  Kf6 {[%clk 0:00:26]} 34. Rb7 {[%clk 0:00:19]}  Nxa3 {[%clk 0:00:25]} 35. Rb6 {[%clk 0:00:19]}  Re2 {[%clk 0:00:23]} 36. Bd7 {[%clk 0:00:20]}  Re5 {[%clk 0:00:19]} 37. Kg1 {[%clk 0:00:18]}  Nc4 {[%clk 0:00:19]} 38. Rxb5 {[%clk 0:00:18]}  Rxb5 {[%clk 0:00:19]} 39. Bxb5 {[%clk 0:00:19]}  Nd6 {[%clk 0:00:20]} 40. Bd3 {[%clk 0:00:18]}  h6 {[%clk 0:00:20]} 41. Kf2 {[%clk 0:00:19]}  Ke5 {[%clk 0:00:19]} 42. Ke3 {[%clk 0:00:20]}  Nb7 {[%clk 0:00:12]} 43. Be4 {[%clk 0:00:19]}  Nc5 {[%clk 0:00:12]} 44. Bc2 {[%clk 0:00:20]}  Nd7 {[%clk 0:00:12]} 45. g3 {[%clk 0:00:20]}  Nf6 {[%clk 0:00:13]} 46. h4 {[%clk 0:00:20]}  g5 {[%clk 0:00:09]} 47. hxg5 {[%clk 0:00:19]}  hxg5 {[%clk 0:00:10]} 48. Kf3 {[%clk 0:00:20]}  Kd4 {[%clk 0:00:10]} 49. Bb3 {[%clk 0:00:19]}  e5 {[%clk 0:00:10]} 50. Bc2 {[%clk 0:00:19]}  e4+ {[%clk 0:00:11]} 51. Ke2 {[%clk 0:00:17]}  Ng4 {[%clk 0:00:10]} 52. Ba4 {[%clk 0:00:16]}  Ne5 {[%clk 0:00:11]} 53. Bb5 {[%clk 0:00:15]}  Nd3 {[%clk 0:00:11]} 54. Kd2 {[%clk 0:00:14]}  Nb4 {[%clk 0:00:11]} 55. Ke2 {[%clk 0:00:14]}  Nd5 {[%clk 0:00:11]} 56. Ba6 {[%clk 0:00:13]}  Nc3+ {[%clk 0:00:11]} 57. Kf2 {[%clk 0:00:14]}  Na4 {[%clk 0:00:09]} 58. Ke2 {[%clk 0:00:13]}  Nc5 {[%clk 0:00:09]} 59. Bb5 {[%clk 0:00:13]}  Nb7 {[%clk 0:00:09]} 60. Ba6 {[%clk 0:00:13]}  Nd6 {[%clk 0:00:09]} 61. Kf2 {[%clk 0:00:13]}  Nf5 {[%clk 0:00:09]} 62. Bb5 {[%clk 0:00:13]}  Ke5 {[%clk 0:00:06]} 63. Ba6 {[%clk 0:00:12]}  Nd6 {[%clk 0:00:05]} 64. Ke3 {[%clk 0:00:11]}  Nf5+ {[%clk 0:00:06]} 65. Kf2 {[%clk 0:00:11]}  Kd4 {[%clk 0:00:07]} 66. Bb5 {[%clk 0:00:11]}  Ne3 {[%clk 0:00:07]} 67. Ba6 {[%clk 0:00:10]}  Nd1+ {[%clk 0:00:07]} 68. Ke2 {[%clk 0:00:10]}  Nc3+ {[%clk 0:00:07]} 69. Kf2 {[%clk 0:00:11]}  Na4 {[%clk 0:00:04]} 70. Ke2 {[%clk 0:00:11]}  Nc5 {[%clk 0:00:03]} 71. Bb5 {[%clk 0:00:11]}  Ne6 {[%clk 0:00:03]} 72. Kf2 {[%clk 0:00:11]}  Ng7 {[%clk 0:00:04]} 73. Bd7 {[%clk 0:00:11]}  Nh5 {[%clk 0:00:04]} 74. Bb5 {[%clk 0:00:10]}  Nf6 {[%clk 0:00:04]} 75. Be2 {[%clk 0:00:10]}  Kc3 {[%clk 0:00:04]} 76. Ke3 {[%clk 0:00:09]}  Kc2 {[%clk 0:00:04]} 77. Ba6 {[%clk 0:00:09]}  Kd1 {[%clk 0:00:04]} 78. Bb7 {[%clk 0:00:10]}  Ke1 {[%clk 0:00:03]} 79. Bxe4 {[%clk 0:00:10]}  Kf1 {[%clk 0:00:02]} 80. Bc6 {[%clk 0:00:07]}  Kg1 {[%clk 0:00:02]} 81. Kf3 {[%clk 0:00:07]}  Kh2 {[%clk 0:00:02]} 82. Bb7 {[%clk 0:00:08]}  Kh3 {[%clk 0:00:02]} 83. g4 {[%clk 0:00:07]}  Kh4 {[%clk 0:00:02]} 84. Bc8 {[%clk 0:00:07]}  Nd5 {[%clk 0:00:02]} 85. Bf5 {[%clk 0:00:07]}  Nf4 {[%clk 0:00:03]} 86. Ke4 {[%clk 0:00:06]}  Nh3 {[%clk 0:00:03]} 87. Kf3 {[%clk 0:00:06]}  Nf4 {[%clk 0:00:02]} 88. Kf2 {[%clk 0:00:07]}  Kh3 {[%clk 0:00:02]} 89. Kg1 {[%clk 0:00:07]}  Kg3 {[%clk 0:00:03]} 90. Kh1 {[%clk 0:00:07]}  Nh3 {[%clk 0:00:03]} 91. Be6 {[%clk 0:00:06]}  Nf2+ {[%clk 0:00:03]} 92. Kg1 {[%clk 0:00:07]}  Nd3 {[%clk 0:00:03]} 93. Kh1 {[%clk 0:00:07]}  Nf4 {[%clk 0:00:04]} 94. Bf5 {[%clk 0:00:07]}  Kf2 {[%clk 0:00:04]} 95. Kh2 {[%clk 0:00:07]}  Ng2 {[%clk 0:00:04]} 96. Kh1 {[%clk 0:00:08]}  Ne3 {[%clk 0:00:05]} 97. Kh2 {[%clk 0:00:08]}  Kf3 {[%clk 0:00:05]} 98. Kg1 {[%clk 0:00:08]}  Kf4 {[%clk 0:00:04]} 99. Bc8 {[%clk 0:00:07]}  Kf3 {[%clk 0:00:03]} 100. Bf5 {[%clk 0:00:07]}  Kf4 {[%clk 0:00:04]} 101. Bc8 {[%clk 0:00:07]}  Nd5 {[%clk 0:00:04]} 102. Bf5 {[%clk 0:00:07]}  Nf6 {[%clk 0:00:04]} 103. Kg2 {[%clk 0:00:08]}  Nxg4 {[%clk 0:00:05]} 104. Bxg4 {[%clk 0:00:09]}  Kxg4 {[%clk 0:00:05]} 105. Kf2 {[%clk 0:00:09]}  Kh3 {[%clk 0:00:05]} 106. Kf1 {[%clk 0:00:09]}  Kh2 {[%clk 0:00:05]} 107. Kf2 {[%clk 0:00:10]}  g4 {[%clk 0:00:06]} 0-1


[Site "https://www.chess.com"]

[Event "Titled Tuesday Blitz December 14 2021"]
[White "Pranav, V"]
[Black "Samsonkin, Artiom"]
[WhiteFideId "25060783"]
[BlackFideId "13503111"]
[WhiteElo "2351"]
[BlackElo "2513"]
[Result "0-1"]
[Round "07"]
[TimeControl "180+1"]
[Date "2021.12.14"]
[WhiteClock "0:00:02"]
[BlackClock "0:00:05"]

1. e4 {[%clk 0:02:57]}  c5 {[%clk 0:02:53]} 2. Nf3 {[%clk 0:02:38]}  d6 {[%clk 0:02:53]} 3. Bb5+ {[%clk 0:02:37]}  Nd7 {[%clk 0:02:53]} 4. d4 {[%clk 0:02:37]}  cxd4 {[%clk 0:02:52]} 5. Qxd4 {[%clk 0:02:38]}  a6 {[%clk 0:02:50]} 6. Bxd7+ {[%clk 0:02:38]}  Bxd7 {[%clk 0:02:51]} 7. c4 {[%clk 0:02:39]}  e5 {[%clk 0:02:51]} 8. Qd3 {[%clk 0:02:40]}  b5 {[%clk 0:02:51]} 9. Nc3 {[%clk 0:02:40]}  bxc4 {[%clk 0:02:51]} 10. Qxc4 {[%clk 0:02:40]}  Be6 {[%clk 0:02:52]} 11. Qc6+ {[%clk 0:02:41]}  Bd7 {[%clk 0:02:52]} 12. Qc4 {[%clk 0:02:41]}  Be6 {[%clk 0:02:53]} 13. Qd3 {[%clk 0:02:41]}  h6 {[%clk 0:02:52]} 14. O-O {[%clk 0:02:36]}  Nf6 {[%clk 0:02:51]} 15. b3 {[%clk 0:02:36]}  Be7 {[%clk 0:02:39]} 16. Rd1 {[%clk 0:02:36]}  O-O {[%clk 0:02:39]} 17. Bb2 {[%clk 0:02:33]}  Qb6 {[%clk 0:02:34]} 18. Nd2 {[%clk 0:02:32]}  Rac8 {[%clk 0:02:29]} 19. Nf1 {[%clk 0:02:31]}  Ng4 {[%clk 0:01:33]} 20. Qe2 {[%clk 0:02:28]}  d5 {[%clk 0:01:23]} 21. Nxd5 {[%clk 0:02:04]}  Bxd5 {[%clk 0:01:18]} 22. Rxd5 {[%clk 0:02:01]}  Nf6 {[%clk 0:00:34]} 23. Rxe5 {[%clk 0:01:58]}  Bc5 {[%clk 0:00:29]} 24. Rf5 {[%clk 0:01:56]}  Bd4 {[%clk 0:00:24]} 25. e5 {[%clk 0:01:40]}  Rfe8 {[%clk 0:00:17]} 26. Bxd4 {[%clk 0:01:30]}  Qxd4 {[%clk 0:00:17]} 27. Rd1 {[%clk 0:01:30]}  Qa7 {[%clk 0:00:17]} 28. Qf3 {[%clk 0:01:24]}  Nh7 {[%clk 0:00:18]} 29. h4 {[%clk 0:01:25]}  Nf8 {[%clk 0:00:17]} 30. Qe3 {[%clk 0:01:21]}  Qb7 {[%clk 0:00:15]} 31. Ng3 {[%clk 0:01:15]}  Rc2 {[%clk 0:00:13]} 32. Nh5 {[%clk 0:01:11]}  Ng6 {[%clk 0:00:10]} 33. Qg3 {[%clk 0:01:01]}  Qe4 {[%clk 0:00:07]} 34. Rf3 {[%clk 0:00:44]}  Rxe5 {[%clk 0:00:04]} 35. Rd8+ {[%clk 0:00:36]}  Re8 {[%clk 0:00:05]} 36. Re3 {[%clk 0:00:23]}  Qxe3 {[%clk 0:00:05]} 37. Qxe3 {[%clk 0:00:22]}  Rxd8 {[%clk 0:00:06]} 38. g3 {[%clk 0:00:23]}  Rd1+ {[%clk 0:00:06]} 39. Kg2 {[%clk 0:00:23]}  Rdd2 {[%clk 0:00:07]} 40. Qe8+ {[%clk 0:00:20]}  Nf8 {[%clk 0:00:07]} 41. Qe3 {[%clk 0:00:18]}  Rxa2 {[%clk 0:00:08]} 42. Nf4 {[%clk 0:00:14]}  Rxf2+ {[%clk 0:00:05]} 43. Kg1 {[%clk 0:00:11]}  Rfb2 {[%clk 0:00:04]} 44. Qc1 {[%clk 0:00:11]}  Rc2 {[%clk 0:00:04]} 45. Qd1 {[%clk 0:00:11]}  Rd2 {[%clk 0:00:02]} 46. Qe1 {[%clk 0:00:12]}  g5 {[%clk 0:00:03]} 47. hxg5 {[%clk 0:00:05]}  hxg5 {[%clk 0:00:04]} 48. Nh3 {[%clk 0:00:06]}  Rg2+ {[%clk 0:00:03]} 49. Kf1 {[%clk 0:00:06]}  Rge2 {[%clk 0:00:04]} 50. Qb4 {[%clk 0:00:04]}  Rh2 {[%clk 0:00:03]} 51. Kg1 {[%clk 0:00:04]}  Rhg2+ {[%clk 0:00:01]} 52. Kf1 {[%clk 0:00:03]}  Rgc2 {[%clk 0:00:02]} 53. Qe1 {[%clk 0:00:02]}  Ne6 {[%clk 0:00:03]} 54. Qd1 {[%clk 0:00:01]}  Kg7 {[%clk 0:00:03]} 55. Ng1 {[%clk 0:00:01]}  Rf2+ {[%clk 0:00:02]} 56. Ke1 {[%clk 0:00:02]}  Rg2 {[%clk 0:00:03]} 57. Kf1 {[%clk 0:00:02]}  Rxg3 {[%clk 0:00:03]} 58. Ne2 {[%clk 0:00:02]}  Rf3+ {[%clk 0:00:03]} 59. Kg1 {[%clk 0:00:03]}  Re3 {[%clk 0:00:04]} 60. Nd4 {[%clk 0:00:02]}  Re5 {[%clk 0:00:01]} 61. Nf3 {[%clk 0:00:02]}  Rf5 {[%clk 0:00:01]} 62. Nh2 {[%clk 0:00:01]}  Rf6 {[%clk 0:00:02]} 63. Ng4 {[%clk 0:00:01]}  Rf4 {[%clk 0:00:02]} 64. Ne3 {[%clk 0:00:01]}  Rd4 {[%clk 0:00:03]} 65. Qf1 {[%clk 0:00:01]}  Re4 {[%clk 0:00:03]} 66. Nf5+ {[%clk 0:00:02]}  Kg8 {[%clk 0:00:04]} 67. Ng3 {[%clk 0:00:02]}  Rg4 {[%clk 0:00:04]} 68. Qd3 {[%clk 0:00:03]}  Nf4 {[%clk 0:00:03]} 69. Qd8+ {[%clk 0:00:04]}  Kh7 {[%clk 0:00:04]} 70. Kh1 {[%clk 0:00:03]}  Rh4+ {[%clk 0:00:04]} 71. Kg1 {[%clk 0:00:04]}  Rg2+ {[%clk 0:00:04]} 72. Kf1 {[%clk 0:00:03]}  Rxg3 {[%clk 0:00:05]} 73. Qf6 {[%clk 0:00:02]}  Rh1+ {[%clk 0:00:04]} 74. Kf2 {[%clk 0:00:02]}  Rh2+ {[%clk 0:00:05]} 75. Kxg3 {[%clk 0:00:03]}  Rg2+ {[%clk 0:00:05]} 76. Kf3 {[%clk 0:00:03]}  g4+ {[%clk 0:00:05]} 77. Ke3 {[%clk 0:00:02]}  Nd5+ {[%clk 0:00:05]} 0-1


[Site "https://www.chess.com"]

[Event "Titled Tuesday Blitz December 14 2021"]
[White "Przybylski, Wojciech"]
[Black "Janaszak, Dawid"]
[WhiteFideId "1117599"]
[BlackFideId "1119206"]
[WhiteElo "2247"]
[BlackElo "2215"]
[Result "0-1"]
[Round "07"]
[TimeControl "180+1"]
[Date "2021.12.15"]
[WhiteClock "0:00:01"]
[BlackClock "0:00:08"]

1. e4 {[%clk 0:03:00]}  e5 {[%clk 0:02:57]} 2. Nf3 {[%clk 0:02:58]}  Nc6 {[%clk 0:02:54]} 3. Bb5 {[%clk 0:02:58]}  a6 {[%clk 0:02:52]} 4. Ba4 {[%clk 0:02:58]}  Nf6 {[%clk 0:02:51]} 5. O-O {[%clk 0:02:58]}  b5 {[%clk 0:02:48]} 6. Bb3 {[%clk 0:02:57]}  Be7 {[%clk 0:02:49]} 7. Re1 {[%clk 0:02:55]}  O-O {[%clk 0:02:47]} 8. d4 {[%clk 0:02:55]}  Nxd4 {[%clk 0:02:31]} 9. Nxd4 {[%clk 0:02:53]}  exd4 {[%clk 0:02:32]} 10. e5 {[%clk 0:02:54]}  Ne8 {[%clk 0:02:29]} 11. Qxd4 {[%clk 0:02:50]}  Bb7 {[%clk 0:02:25]} 12. a4 {[%clk 0:02:36]}  c5 {[%clk 0:02:24]} 13. Qg4 {[%clk 0:02:36]}  c4 {[%clk 0:02:21]} 14. Ba2 {[%clk 0:02:36]}  d5 {[%clk 0:02:08]} 15. c3 {[%clk 0:02:25]}  Qb6 {[%clk 0:02:04]} 16. Be3 {[%clk 0:02:19]}  Qg6 {[%clk 0:02:04]} 17. Qxg6 {[%clk 0:02:13]}  hxg6 {[%clk 0:02:05]} 18. Nd2 {[%clk 0:02:13]}  Nc7 {[%clk 0:02:04]} 19. Nf3 {[%clk 0:02:06]}  Ne6 {[%clk 0:01:57]} 20. Nd4 {[%clk 0:01:49]}  Nxd4 {[%clk 0:01:48]} 21. Bxd4 {[%clk 0:01:48]}  Bc6 {[%clk 0:01:48]} 22. a5 {[%clk 0:01:43]}  b4 {[%clk 0:01:40]} 23. Bb1 {[%clk 0:01:41]}  b3 {[%clk 0:01:35]} 24. g4 {[%clk 0:01:21]}  Bd7 {[%clk 0:01:34]} 25. h3 {[%clk 0:01:20]}  Rac8 {[%clk 0:01:09]} 26. f4 {[%clk 0:01:11]}  Bc5 {[%clk 0:01:08]} 27. Rd1 {[%clk 0:01:11]}  Be7 {[%clk 0:00:58]} 28. f5 {[%clk 0:01:07]}  g5 {[%clk 0:00:46]} 29. Kf2 {[%clk 0:01:05]}  f6 {[%clk 0:00:44]} 30. Kg3 {[%clk 0:00:59]}  Bc6 {[%clk 0:00:43]} 31. h4 {[%clk 0:00:57]}  gxh4+ {[%clk 0:00:42]} 32. Kf4 {[%clk 0:00:51]}  g5+ {[%clk 0:00:37]} 33. Ke3 {[%clk 0:00:42]}  Kf7 {[%clk 0:00:31]} 34. e6+ {[%clk 0:00:31]}  Kg7 {[%clk 0:00:29]} 35. Kf3 {[%clk 0:00:31]}  Rh8 {[%clk 0:00:29]} 36. Kg2 {[%clk 0:00:28]}  h3+ {[%clk 0:00:29]} 37. Kh2 {[%clk 0:00:28]}  Bd6+ {[%clk 0:00:29]} 38. Kh1 {[%clk 0:00:28]}  h2 {[%clk 0:00:27]} 39. Rd2 {[%clk 0:00:25]}  Rh4 {[%clk 0:00:23]} 40. Rg2 {[%clk 0:00:24]}  Rh3 {[%clk 0:00:19]} 41. Rf2 {[%clk 0:00:03]}  Rch8 {[%clk 0:00:18]} 42. Bc2 {[%clk 0:00:02]}  bxc2 {[%clk 0:00:18]} 43. Rxc2 {[%clk 0:00:03]}  Rg3 {[%clk 0:00:16]} 44. Rg2 {[%clk 0:00:03]}  Rxg2 {[%clk 0:00:12]} 45. Kxg2 {[%clk 0:00:04]}  Rh4 {[%clk 0:00:10]} 46. Rh1 {[%clk 0:00:03]}  Rxg4+ {[%clk 0:00:10]} 47. Kf3 {[%clk 0:00:04]}  Rf4+ {[%clk 0:00:09]} 48. Ke2 {[%clk 0:00:04]}  Rxf5 {[%clk 0:00:09]} 49. e7 {[%clk 0:00:04]}  Bxe7 {[%clk 0:00:09]} 50. Rxh2 {[%clk 0:00:04]}  Bd6 {[%clk 0:00:09]} 51. Rg2 {[%clk 0:00:04]}  Be5 {[%clk 0:00:08]} 52. Be3 {[%clk 0:00:04]}  Kg6 {[%clk 0:00:08]} 53. Rg1 {[%clk 0:00:04]}  Bc7 {[%clk 0:00:07]} 54. Rg4 {[%clk 0:00:03]}  Re5 {[%clk 0:00:07]} 55. Kd2 {[%clk 0:00:03]}  Re4 {[%clk 0:00:08]} 56. Rg2 {[%clk 0:00:03]}  g4 {[%clk 0:00:08]} 57. b4 {[%clk 0:00:02]}  f5 {[%clk 0:00:08]} 58. Bd4 {[%clk 0:00:01]}  Bf4+ {[%clk 0:00:07]} 59. Kc2 {[%clk 0:00:01]}  Be5 {[%clk 0:00:08]} 0-1


[Site "https://www.chess.com"]

[Event "Titled Tuesday Blitz December 14 2021"]
[White "Punin, Andrii"]
[Black "Bluebaum, Matthias"]
[WhiteFideId "14112639"]
[BlackFideId "24651516"]
[WhiteElo "2357"]
[BlackElo "2609"]
[Result "0-1"]
[Round "07"]
[TimeControl "180+1"]
[Date "2021.12.14"]
[WhiteClock "0:00:44"]
[BlackClock "0:01:50"]

1. e4 {[%clk 0:02:59]}  e6 {[%clk 0:03:00]} 2. d4 {[%clk 0:02:59]}  d5 {[%clk 0:03:01]} 3. Nc3 {[%clk 0:02:58]}  Nf6 {[%clk 0:03:01]} 4. e5 {[%clk 0:02:58]}  Nfd7 {[%clk 0:03:02]} 5. f4 {[%clk 0:02:58]}  c5 {[%clk 0:03:02]} 6. Nf3 {[%clk 0:02:58]}  Nc6 {[%clk 0:03:03]} 7. Be3 {[%clk 0:02:58]}  a6 {[%clk 0:03:04]} 8. Qd2 {[%clk 0:02:58]}  b5 {[%clk 0:03:05]} 9. dxc5 {[%clk 0:02:55]}  Bxc5 {[%clk 0:03:06]} 10. Bd3 {[%clk 0:02:55]}  Qb6 {[%clk 0:03:06]} 11. Bf2 {[%clk 0:02:55]}  Bb7 {[%clk 0:03:06]} 12. O-O {[%clk 0:02:54]}  h6 {[%clk 0:03:07]} 13. Kh1 {[%clk 0:02:54]}  Bxf2 {[%clk 0:03:07]} 14. Qxf2 {[%clk 0:02:40]}  Qxf2 {[%clk 0:03:06]} 15. Rxf2 {[%clk 0:02:41]}  g5 {[%clk 0:03:07]} 16. g3 {[%clk 0:02:33]}  Ke7 {[%clk 0:03:04]} 17. Ne2 {[%clk 0:02:32]}  d4 {[%clk 0:02:50]} 18. Kg1 {[%clk 0:02:27]}  Nc5 {[%clk 0:02:49]} 19. a3 {[%clk 0:02:21]}  g4 {[%clk 0:02:44]} 20. Ne1 {[%clk 0:02:08]}  Rhd8 {[%clk 0:02:32]} 21. b4 {[%clk 0:01:56]}  Na4 {[%clk 0:02:31]} 22. Nc1 {[%clk 0:01:55]}  Nc3 {[%clk 0:02:16]} 23. Nb3 {[%clk 0:01:50]}  a5 {[%clk 0:02:17]} 24. Nc5 {[%clk 0:01:43]}  Rdb8 {[%clk 0:02:16]} 25. bxa5 {[%clk 0:01:32]}  Rxa5 {[%clk 0:02:16]} 26. Nxb7 {[%clk 0:01:28]}  Rxb7 {[%clk 0:02:17]} 27. Ng2 {[%clk 0:01:27]}  b4 {[%clk 0:02:17]} 28. a4 {[%clk 0:01:26]}  Rba7 {[%clk 0:02:13]} 29. f5 {[%clk 0:01:16]}  Nxe5 {[%clk 0:02:11]} 30. fxe6 {[%clk 0:01:14]}  fxe6 {[%clk 0:02:12]} 31. Nh4 {[%clk 0:01:08]}  Rxa4 {[%clk 0:02:11]} 32. Rxa4 {[%clk 0:01:07]}  Rxa4 {[%clk 0:02:12]} 33. Bh7 {[%clk 0:01:02]}  Ra1+ {[%clk 0:02:08]} 34. Kg2 {[%clk 0:00:57]}  Nc4 {[%clk 0:01:51]} 35. h3 {[%clk 0:00:47]}  Ne3+ {[%clk 0:01:50]} 36. Kh2 {[%clk 0:00:47]}  gxh3 {[%clk 0:01:50]} 37. Ng6+ {[%clk 0:00:44]}  Kd6 {[%clk 0:01:50]} 38. Nf4 {[%clk 0:00:44]}  Ng4+ {[%clk 0:01:50]} 0-1


[Site "https://www.chess.com"]